bitfinex-derivatives/quotes_BNBF0:USTF0_20250807
["timestamp","ask_amount","ask_price","bid_price","bid_amount"]
[1754588519454,0.85316295,775.08,774.24,0.85833194]
[1754588519653,0.866,775.21,774.24,0.85833194]
[1754588519854,0.85323259,775.2,774.24,0.85833194]
[1754588520156,0.85323259,775.19,774.24,0.85833194]
[1754588520357,0.85323259,775.18,774.24,0.85833194]
[1754588520654,0.85323259,775.17,774.24,0.85833194]
[1754588520853,0.85323259,775.16,774.24,0.85833194]
[1754588521158,0.85323259,775.15,774.23,0.85833194]
[1754588521354,0.85323259,775.14,774.25,0.85833194]
[1754588521553,0.85323259,775.13,774.25,0.85833194]
[1754588521757,0.85323259,775.12,774.25,0.85833194]
[1754588521957,0.85323259,775.11,774.25,0.85833194]
[1754588522159,0.866,775.21,774.3,0.85833194]
[1754588522357,0.85335631,775.2,774.3,0.85833194]
[1754588522559,0.85335631,775.19,774.3,0.85833194]
[1754588522760,0.85335631,775.18,774.3,0.85833194]
[1754588523058,0.85335631,775.17,774.3,0.85833194]
[1754588523260,0.85335631,775.16,774.29,0.85833194]
[1754588523560,0.85335631,775.15,774.29,0.85833194]
[1754588523760,0.85335631,775.14,774.29,0.85833194]
[1754588524057,0.85335631,775.13,774.29,0.85833194]
[1754588524260,0.85335631,775.12,774.29,0.85833194]
[1754588524560,0.85335631,775.11,774.29,0.85833194]
[1754588524760,0.85335631,775.1,774.29,0.85833194]
[1754588524961,0.866,775.21,774.29,0.85833194]
[1754588525159,0.85354449,775.2,774.29,0.85833194]
[1754588525361,0.85354449,775.19,774.28,0.85833194]
[1754588525558,0.85354449,775.18,774.27,0.85833194]
[1754588525759,0.85354449,775.17,774.28,0.85833194]
[1754588525959,0.866,775.21,774.28,0.85833194]
[1754588526160,0.85355297,775.2,774.28,0.85833194]
[1754588526463,0.866,775.21,774.27,0.85833194]
[1754588526658,0.85361524,775.2,774.27,0.85833194]
[1754588526862,0.866,775.21,774.27,0.85833194]
[1754588528164,0.866,775.21,774.28,0.85833194]
[1754588531263,0.866,775.21,774.08,1.1444425]
[1754588531264,0.866,775.21,774.29,0.85833194]
[1754588531765,0.866,775.21,774.19,0.85833194]
[1754588531966,0.866,775.21,774.16,0.85833194]
[1754588532265,0.866,775.21,774.17,0.85833194]
[1754588532765,0.866,775.21,774.18,0.85833194]
[1754588533165,0.866,775.21,774.19,0.85833194]
[1754588533767,0.818,775.22,774.19,0.85833194]
[1754588534163,0.818,775.22,774.2,0.85833194]
[1754588534868,0.818,775.22,774.21,0.85833194]
[1754588535265,0.818,775.22,774.22,0.85833194]
[1754588536167,0.818,775.22,774.24,0.85833194]
[1754588536370,0.818,775.22,774.25,0.85833194]
[1754588536770,0.818,775.22,774.24,0.85833194]
[1754588536972,0.818,775.22,774.23,0.85833194]
[1754588537173,0.818,775.22,774.25,0.85833194]
[1754588537369,0.85524317,775.21,774.25,0.85833194]
[1754588537573,0.85524317,775.2,774.25,0.85833194]
[1754588538870,0.85524317,775.2,774.26,0.85833194]
[1754588539177,0.85524317,775.2,774.28,0.85833194]
[1754588540271,0.85524317,775.2,774.31,0.85833194]
[1754588541370,0.85524317,775.2,774.18,1.1444425]
[1754588541371,0.85524317,775.2,774.35,0.85833194]
[1754588541574,0.85524317,775.2,774.36,0.85833194]
[1754588541775,0.85524317,775.2,774.37,0.85833194]
[1754588542276,0.85524317,775.2,774.38,0.85833194]
[1754588542672,0.85524317,775.2,774.39,0.85833194]
[1754588543172,0.85524317,775.2,774.4,0.85833194]
[1754588543676,0.85524317,775.2,774.39,0.85833194]
[1754588544576,0.85524317,775.2,774.4,0.85833194]
[1754588544775,0.85793691,775.19,774.4,0.85833194]
[1754588544974,0.85793691,775.18,774.4,0.85833194]
[1754588545172,0.833,775.21,774.42,0.85833194]
[1754588545173,0.85793691,775.17,774.42,0.85833194]
[1754588545374,0.85820811,775.16,774.42,0.85833194]
[1754588545573,0.85820811,775.15,774.42,0.85833194]
[1754588545775,0.833,775.21,774.41,0.85833194]
[1754588545975,0.85820811,775.2,774.41,0.85833194]
[1754588546174,0.85820811,775.19,774.43,0.85833194]
[1754588546377,0.85820811,775.18,774.43,0.85833194]
[1754588546574,0.85820811,775.17,774.43,0.85833194]
[1754588546778,0.85820811,775.16,774.43,0.85833194]
[1754588547078,0.85820811,775.16,774.27,1.1444425]
[1754588547079,0.85820811,775.15,774.42,0.85833194]
[1754588547278,0.85882744,775.14,774.4,0.85833194]
[1754588547578,0.833,775.21,774.32,0.85833194]
[1754588547778,0.85882452,775.2,774.32,0.85833194]
[1754588547975,0.85882452,775.19,774.32,0.85833194]
[1754588548276,0.85882452,775.18,774.34,0.85833194]
[1754588548478,0.85882452,775.17,774.34,0.85833194]
[1754588548675,0.85882452,775.16,774.34,0.85833194]
[1754588548879,0.85882452,775.15,774.34,0.85833194]
[1754588549081,0.85882452,775.14,774.34,0.85833194]
[1754588549381,0.85882452,775.13,774.35,0.85833194]
[1754588549578,0.85882452,775.12,774.35,0.85833194]
[1754588549778,0.85882452,775.11,774.35,0.85833194]
[1754588549978,0.85882452,775.1,774.35,0.85833194]
[1754588550282,0.85882452,775.09,774.35,0.85833194]
[1754588550480,0.85882452,775.08,774.25,0.85833194]
[1754588550680,0.85882452,775.07,774.2,0.85833194]
[1754588550881,0.85882452,775.06,774.21,0.85833194]
[1754588551177,0.85882452,775.05,774.21,0.85833194]
[1754588551382,0.85882452,775.04,774.22,0.85833194]
[1754588551681,0.85882452,775.03,774.22,0.85833194]
[1754588551882,0.85882452,775.02,774.22,0.85833194]
[1754588552080,0.85882452,775.01,774.22,0.85833194]
[1754588552281,0.85882452,775.0,774.22,0.85833194]
[1754588552481,0.85882452,774.99,774.22,0.85833194]
[1754588552687,0.85882452,774.98,774.25,0.85833194]
[1754588552886,0.85882452,774.97,774.25,0.85833194]
[1754588553085,0.85882452,774.96,774.25,0.85833194]
[1754588553286,0.85882452,774.95,774.25,0.85833194]
[1754588553581,0.85882452,775.1,774.26,0.85833194]
[1754588553784,0.86188089,775.13,774.27,0.85833194]
[1754588554283,0.85964783,775.12,774.28,0.85833194]
[1754588554684,0.8596196,775.11,774.28,0.85833194]
[1754588555184,0.85956257,775.1,774.28,0.85833194]
[1754588555388,0.85956257,775.09,774.28,0.85833194]
[1754588555585,0.85956257,775.08,774.28,0.85833194]
[1754588555785,0.85956257,775.07,774.28,0.85833194]
[1754588555990,0.85956257,775.06,774.28,0.85833194]
[1754588556291,0.85956257,775.05,774.29,0.85833194]
[1754588556491,0.85956257,775.04,774.29,0.85833194]
[1754588556790,0.85956257,775.03,774.28,0.85833194]
[1754588557089,0.85956257,775.02,774.28,0.85833194]
[1754588557288,0.85956257,775.01,774.27,0.85833194]
[1754588557487,0.85956257,775.0,774.27,0.85833194]
[1754588557692,0.85956257,774.99,774.27,0.85833194]
[1754588557993,0.85956257,774.98,774.26,0.85833194]
[1754588558188,0.85956257,774.97,774.26,0.85833194]
[1754588558388,0.85956257,774.96,774.26,0.85833194]
[1754588558688,0.85956257,774.95,774.27,0.85833194]
[1754588558896,0.85956257,774.94,774.27,0.85833194]
[1754588559096,0.85956257,774.93,774.27,0.85833194]
[1754588559292,1.002,774.98,774.26,0.85833194]
[1754588559595,0.8593796,774.97,774.26,0.85833194]
[1754588559794,0.8593796,774.96,774.27,0.85833194]
[1754588559993,0.8593796,774.95,774.27,0.85833194]
[1754588560295,0.8593796,774.94,774.27,0.85833194]
[1754588560496,1.002,774.98,774.27,0.85833194]
[1754588560497,0.8593796,774.93,774.27,0.85833194]
[1754588560697,1.002,774.98,774.27,0.85833194]
[1754588560898,0.85934431,774.97,774.26,0.85833194]
[1754588561092,0.85934431,774.96,774.26,0.85833194]
[1754588561298,0.85934431,774.95,774.26,0.85833194]
[1754588561593,0.85934431,774.94,774.26,0.85833194]
[1754588561794,1.002,774.98,774.26,0.85833194]
[1754588561995,0.85930171,774.97,774.26,0.85833194]
[1754588562195,0.85930171,774.96,774.25,0.85833194]
[1754588562399,0.85930171,774.95,774.25,0.85833194]
[1754588562595,0.85930171,774.94,774.25,0.85833194]
[1754588562794,1.002,774.98,774.25,0.85833194]
[1754588562999,0.85926805,774.97,774.25,0.85833194]
[1754588563199,0.85926805,774.96,774.25,0.85833194]
[1754588563399,0.85926805,774.95,774.25,0.85833194]
[1754588563595,0.85926805,774.94,774.25,0.85833194]
[1754588563895,1.002,774.98,774.25,0.85833194]
[1754588564198,1.002,774.98,774.07,1.1444425]
[1754588564199,0.8592292,774.97,774.24,0.85833194]
[1754588564396,0.85918519,774.96,774.24,0.85833194]
[1754588564598,0.85918519,774.95,774.25,0.85833194]
[1754588564796,1.002,774.98,774.25,0.85833194]
[1754588564995,0.85918227,774.97,774.24,0.85833194]
[1754588565296,0.85918227,774.96,774.24,0.85833194]
[1754588565498,0.85918227,774.95,774.24,0.85833194]
[1754588565699,0.85918227,774.94,774.24,0.85833194]
[1754588565897,0.85914391,774.93,774.24,0.85833194]
[1754588566100,0.85914391,774.92,774.24,0.85833194]
[1754588566296,1.002,774.98,774.24,0.85833194]
[1754588566596,0.85909139,774.97,774.24,0.85833194]
[1754588566801,0.85909139,774.96,774.24,0.85833194]
[1754588567001,0.85909139,774.95,774.24,0.85833194]
[1754588567200,0.85909139,774.95,772.9,4.0301041]
[1754588567201,0.85909139,774.94,774.23,0.85833194]
[1754588567398,0.85909139,774.93,774.24,0.85833194]
[1754588567603,0.85909139,774.92,774.23,0.85833194]
[1754588567901,0.85909139,774.91,774.24,0.85833194]
[1754588568101,0.85909139,774.9,774.23,0.85833194]
[1754588568299,0.85909139,774.89,774.23,0.85833194]
[1754588568499,0.85909139,774.88,774.22,0.85833194]
[1754588568698,0.85909139,774.87,774.22,0.85833194]
[1754588568903,0.85909139,774.86,774.22,0.85833194]
[1754588569099,0.85909139,774.85,774.22,0.85833194]
[1754588569402,0.85909139,774.84,774.21,0.85833194]
[1754588569600,0.85909139,774.83,774.21,0.85833194]
[1754588569904,0.85909139,774.82,774.21,0.85833194]
[1754588570103,1.002,774.98,774.21,0.85833194]
[1754588570305,0.85859084,774.97,774.2,0.85833194]
[1754588570606,0.85859084,774.96,774.2,0.85833194]
[1754588570803,0.85859084,774.95,774.2,0.85833194]
[1754588571103,0.85859084,774.94,774.2,0.85833194]
[1754588571307,0.85859084,774.93,774.2,0.85833194]
[1754588571505,0.85859084,774.92,774.2,0.85833194]
[1754588571707,0.85859084,774.91,774.19,0.85833194]
[1754588571910,0.85859084,774.9,774.15,0.85833194]
[1754588572104,0.85859084,774.89,774.15,0.85833194]
[1754588572309,0.85859084,774.88,774.15,0.85833194]
[1754588572606,1.002,774.98,774.06,0.85833194]
[1754588572907,0.86188089,774.97,774.08,0.85833194]
[1754588573206,0.85822533,774.96,774.07,0.85833194]
[1754588573406,0.85822533,774.95,774.07,0.85833194]
[1754588573703,1.86388089,774.98,774.07,0.85833194]
[1754588573909,0.85815727,774.97,774.06,0.85833194]
[1754588574107,0.978,774.97,774.06,0.85833194]
[1754588574506,0.978,774.97,774.08,0.85833194]
[1754588575105,0.978,774.97,774.09,0.85833194]
[1754588576207,0.978,774.97,774.12,0.85833194]
[1754588576405,0.978,774.97,774.14,0.85833194]
[1754588576810,0.978,774.97,774.21,0.85833194]
[1754588577110,0.978,774.97,774.25,0.85833194]
[1754588577406,0.978,774.97,774.26,0.86245786]
[1754588578407,0.978,774.97,774.25,0.86245786]
[1754588578610,0.978,774.97,774.24,0.86245786]
[1754588581210,0.978,774.97,774.21,0.86245786]
[1754588581611,0.85804552,774.96,774.22,0.86245786]
[1754588581808,0.85804552,774.95,774.21,0.86245786]
[1754588582011,0.978,774.97,774.21,0.86245786]
[1754588582211,0.85808874,774.96,774.22,0.86245786]
[1754588582407,0.85808874,774.95,774.22,0.86245786]
[1754588582613,0.978,774.97,774.22,0.86245786]
[1754588582909,0.85804839,774.96,774.22,0.86245786]
[1754588583112,0.85804839,774.95,774.24,0.86245786]
[1754588583307,0.85804839,774.94,774.24,0.86245786]
[1754588583510,0.978,774.97,774.25,0.86245786]
[1754588583709,0.85803055,774.96,774.25,0.86245786]
[1754588583909,0.85803055,774.95,774.25,0.86245786]
[1754588584109,0.85803055,774.94,774.25,0.86245786]
[1754588584410,0.978,774.97,774.26,0.86245786]
[1754588584614,0.85801361,774.96,774.26,0.86245786]
[1754588584811,0.85801361,774.95,774.26,0.86245786]
[1754588585115,0.85801361,774.94,774.26,0.86245786]
[1754588585314,0.978,774.97,774.27,0.86245786]
[1754588585511,0.85799754,774.96,774.27,0.86245786]
[1754588585714,0.85799754,774.95,774.27,0.86245786]
[1754588585914,0.85799754,774.94,774.27,0.86245786]
[1754588586115,0.85799754,774.93,774.27,0.86245786]
[1754588586310,0.978,774.97,774.28,0.86245786]
[1754588586512,0.85800852,774.96,774.28,0.86245786]
[1754588586711,0.978,774.97,774.19,0.86245786]
[1754588587315,0.978,774.97,774.2,0.86245786]
[1754588588216,1.002,774.98,774.21,0.86245786]
[1754588588713,1.002,774.98,774.23,0.86245786]
[1754588589118,1.002,774.98,774.24,0.86245786]
[1754588589316,1.002,774.98,774.25,0.86245786]
[1754588589616,1.002,774.98,774.03,1.1444425]
[1754588589617,1.002,774.98,774.26,0.86245786]
[1754588590220,1.002,774.98,774.27,0.86245786]
[1754588590515,1.002,774.98,774.28,0.86245786]
[1754588591117,1.002,774.98,774.29,0.86245786]
[1754588591319,1.002,774.98,772.99,2.8786458]
[1754588591320,0.905,774.97,774.32,0.86245786]
[1754588593018,0.905,774.97,774.35,0.86245786]
[1754588593617,0.905,774.97,774.36,0.86245786]
[1754588593817,0.905,774.97,774.38,0.86245786]
[1754588595222,0.905,774.97,774.39,0.86245786]
[1754588596822,0.905,774.97,774.41,0.86245786]
[1754588597217,0.905,774.97,774.43,0.86245786]
[1754588597919,1.192,774.96,774.43,0.86245786]
[1754588598624,1.192,774.96,774.42,0.86245786]
[1754588599124,1.192,774.96,772.86,4.0301041]
[1754588599125,1.192,774.96,774.47,0.86245786]
[1754588600320,1.192,774.96,774.48,0.86245786]
[1754588600520,1.192,774.96,774.47,0.86245786]
[1754588601521,1.192,774.96,774.49,0.86245786]
[1754588602525,1.192,774.96,774.51,0.86245786]
[1754588603025,1.192,774.96,774.54,0.86245786]
[1754588603224,1.192,774.96,774.57,0.86245786]
[1754588603424,1.192,774.96,773.5,2.8786458]
[1754588603425,1.192,774.96,774.59,0.86245786]
[1754588604626,1.192,774.96,774.6,0.86245786]
[1754588605224,1.192,774.96,774.42,1.1444425]
[1754588605225,1.192,774.96,774.59,0.86245786]
[1754588605527,1.192,774.96,774.58,0.86245786]
[1754588606426,1.192,774.96,774.4,1.1444425]
[1754588606725,1.192,774.96,774.57,0.86346769]
[1754588607126,1.192,774.96,774.58,0.86346769]
[1754588608326,1.192,774.96,774.41,1.1444425]
[1754588608327,1.192,774.96,774.57,0.86346769]
[1754588608732,1.192,774.96,774.58,0.86346769]
[1754588610129,1.192,774.96,774.57,0.86346769]
[1754588611336,1.192,774.96,774.42,1.1444425]
[1754588611530,1.192,774.96,774.57,0.86298922]
[1754588612433,1.066,774.95,774.57,0.86298922]
[1754588612735,1.066,774.95,774.59,0.86298922]
[1754588612931,1.066,774.95,774.58,0.86298922]
[1754588615037,1.066,774.95,774.5,0.86298922]
[1754588616333,1.066,774.95,774.48,0.86298922]
[1754588616834,1.066,774.95,774.45,0.86298922]
[1754588617034,1.066,774.95,774.44,0.86298922]
[1754588617235,1.066,774.95,774.35,0.86298922]
[1754588617937,1.066,774.95,774.33,0.86298922]
[1754588618940,0.857,774.94,774.33,0.86298922]
[1754588620542,0.857,774.94,774.42,0.86298922]
[1754588620842,0.857,774.94,774.37,0.86298922]
[1754588621835,0.857,774.94,774.38,0.86298922]
[1754588622035,0.857,774.94,774.36,0.86298922]
[1754588622238,0.857,774.94,774.37,0.86298922]
[1754588622440,0.857,774.94,774.36,0.86298922]
[1754588623141,0.857,774.94,774.37,0.86298922]
[1754588623440,0.857,774.94,773.2,4.0301041]
[1754588623441,0.857,774.94,774.36,0.86298922]
[1754588623642,0.857,774.94,774.37,0.86298922]
[1754588624242,0.857,774.94,774.38,0.86298922]
[1754588626937,0.857,774.94,774.4,0.86298922]
[1754588627842,0.857,774.94,774.41,0.86298922]
[1754588628838,0.857,774.94,774.4,0.86298922]
[1754588629541,0.857,774.94,774.39,0.86298922]
[1754588630038,0.857,774.94,774.4,0.86298922]
[1754588631342,0.857,774.94,774.41,0.86298922]
[1754588632139,0.857,774.94,774.42,0.86298922]
[1754588633243,0.857,774.94,774.43,0.86298922]
[1754588633944,0.857,774.94,774.44,0.86298922]
[1754588634148,0.857,774.94,774.43,0.86298922]
[1754588635144,0.857,774.94,774.44,0.86298922]
[1754588635949,0.857,774.94,774.43,0.86298922]
[1754588636650,0.857,774.94,774.44,0.86298922]
[1754588643053,0.857,774.94,774.45,0.86298922]
[1754588643453,0.857,774.94,774.44,0.86298922]
[1754588643650,0.857,774.94,774.42,0.86298922]
[1754588644151,0.857,774.94,773.47,0.22457336]
[1754588644152,0.857,774.94,774.44,0.86298922]
[1754588646460,0.857,774.94,774.45,0.86298922]
[1754588646657,0.857,774.94,774.47,0.86298922]
[1754588649163,0.857,774.94,774.48,0.86298922]
[1754588650260,0.857,774.94,774.42,0.86298922]
[1754588651661,0.857,774.94,774.4,0.86298922]
[1754588652463,0.857,774.94,774.41,0.86298922]
[1754588655166,0.857,774.94,774.39,0.86298922]
[1754588655769,0.857,774.94,774.41,0.86298922]
[1754588655968,0.857,774.94,774.37,0.86298922]
[1754588656769,0.857,774.94,774.39,0.86298922]
[1754588656975,0.857,774.94,774.45,0.86298922]
[1754588660075,1.066,774.95,774.45,0.86298922]
[1754588661975,0.778,774.94,774.45,0.86298922]
[1754588662870,0.778,774.94,774.46,0.86298922]
[1754588663076,0.778,774.94,774.47,0.86298922]
[1754588666275,1.0,774.93,774.54,0.86499361]
[1754588667376,1.0,774.93,774.55,0.86499361]
[1754588668676,1.0,774.93,774.54,0.86499361]
[1754588669181,1.0,774.93,774.55,0.86499361]
[1754588671580,1.0,774.93,774.56,0.86499361]
[1754588671776,1.0,774.93,774.55,0.86499361]
[1754588672178,1.0,774.93,774.56,0.86499361]
[1754588672478,1.0,774.93,774.56,0.86527505]
[1754588673081,1.0,774.93,774.37,1.1444425]
[1754588673082,1.0,774.93,774.55,0.86527505]
[1754588673382,1.0,774.93,774.56,0.86527505]
[1754588673976,1.0,774.93,774.54,0.86527505]
[1754588674179,1.0,774.93,774.51,0.86527505]
[1754588674379,1.0,774.93,774.52,0.86527505]
[1754588674977,1.0,774.93,774.67,0.86527505]
[1754588675277,1.0,774.93,774.66,0.86527505]
[1754588675578,1.0,774.93,774.67,0.86527505]
[1754588676283,1.0,774.93,774.66,0.86527505]
[1754588676977,1.0,774.93,774.67,0.86527505]
[1754588677281,1.0,774.93,774.7,0.86527505]
[1754588677979,1.0,774.93,774.72,0.86527505]
[1754588678177,1.0,774.93,774.75,0.86527505]
[1754588679283,1.0,774.93,774.74,0.86527505]
[1754588679978,1.989,774.93,774.74,0.86527505]
[1754588680184,1.989,774.93,774.76,0.86527505]
[1754588680385,1.989,774.93,774.75,0.86527505]
[1754588681383,1.989,774.93,774.74,0.86527505]
[1754588683289,1.989,774.93,774.73,0.86527505]
[1754588684689,1.989,774.93,774.63,0.86527505]
[1754588686393,1.989,774.93,774.62,0.86527505]
[1754588687592,1.989,774.93,774.54,0.86527505]
[1754588688392,1.989,774.93,774.53,0.86527505]
[1754588689389,1.989,774.93,774.54,0.86527505]
[1754588691195,1.989,774.93,774.53,0.86527505]
[1754588691597,1.989,774.93,774.54,0.86527505]
[1754588691796,1.989,774.93,774.55,0.86527505]
[1754588692290,1.989,774.93,774.56,0.86527505]
[1754588694397,1.989,774.93,774.57,0.86527505]
[1754588694594,1.989,774.93,774.61,0.86527505]
[1754588694798,1.989,774.93,774.63,0.86527505]
[1754588696395,1.989,774.93,774.65,0.86527505]
[1754588697097,1.989,774.93,774.66,0.86527505]
[1754588697301,1.989,774.93,774.67,0.86527505]
[1754588697698,1.989,774.93,774.66,0.86527505]
[1754588698803,0.989,774.93,774.66,0.86527505]
[1754588699100,0.989,774.93,774.67,0.86527505]
[1754588701100,1.054,774.92,774.67,0.86527505]
[1754588701297,1.054,774.92,774.66,0.86527505]
[1754588701501,1.054,774.92,774.67,0.86527505]
[1754588703002,1.054,774.92,774.66,0.86527505]
[1754588704303,1.054,774.92,774.65,0.86527505]
[1754588704799,1.054,774.92,773.58,4.0301041]
[1754588704800,1.054,774.92,774.64,0.86527505]
[1754588705202,1.054,774.92,774.65,0.86527505]
[1754588705398,1.054,774.92,774.69,0.86527505]
[1754588706005,1.054,774.92,774.65,0.86527505]
[1754588706305,1.054,774.92,774.66,0.86527505]
[1754588708900,1.062,774.91,774.66,0.86527505]
[1754588709304,1.062,774.91,774.67,0.86527505]
[1754588709504,1.062,774.91,774.66,0.86527505]
[1754588710306,1.062,774.91,774.67,0.86527505]
[1754588711105,1.062,774.91,774.66,0.86527505]
[1754588711406,1.062,774.91,774.67,0.86527505]
[1754588712201,1.062,774.91,774.66,0.86527505]
[1754588713107,1.062,774.91,774.67,0.86527505]
[1754588713302,1.062,774.91,774.68,0.86527505]
[1754588714806,1.062,774.91,774.69,0.86527505]
[1754588715907,1.062,774.91,774.73,0.86527505]
[1754588716113,1.062,774.91,774.63,0.86527505]
[1754588716310,1.062,774.91,774.65,0.86527505]
[1754588716510,1.062,774.91,774.64,0.86527505]
[1754588717210,1.062,774.91,774.65,0.86527505]
[1754588719416,1.062,774.91,774.66,0.86527505]
[1754588722218,1.062,774.91,774.67,0.86527505]
[1754588724318,1.062,774.91,774.68,0.86527505]
[1754588725118,1.062,774.91,774.67,0.86527505]
[1754588725314,1.062,774.91,774.68,0.86527505]
[1754588725922,1.062,774.91,774.73,0.86527505]
[1754588726120,1.062,774.91,774.74,0.86527505]
[1754588726318,1.062,774.91,774.75,0.86527505]
[1754588728422,1.062,774.91,774.76,0.86527505]
[1754588730418,1.062,774.91,774.77,0.86527505]
[1754588731519,1.062,774.91,774.81,0.86527505]
[1754588732025,1.062,774.91,774.8,0.86527505]
[1754588733324,1.062,774.91,774.81,0.86527505]
[1754588734127,1.062,774.91,774.82,0.86527505]
[1754588734520,1.062,774.91,774.78,0.86527505]
[1754588734825,1.062,774.91,774.65,0.86527505]
[1754588735021,1.062,774.91,774.63,0.86527505]
[1754588737326,1.062,774.91,774.62,0.86527505]
[1754588741523,1.062,774.91,774.6,0.86527505]
[1754588743724,1.062,774.91,774.59,0.86527505]
[1754588743929,1.062,774.91,774.6,0.86527505]
[1754588744426,1.062,774.91,774.64,0.86527505]
[1754588744624,1.062,774.91,774.68,0.86527505]
[1754588745628,1.062,774.91,774.67,0.86527505]
[1754588746026,1.062,774.91,774.65,0.86527505]
[1754588747028,1.062,774.91,774.5,1.1444425]
[1754588747029,1.062,774.91,774.66,0.86527505]
[1754588747729,1.137,774.9,774.66,0.86527505]
[1754588747929,1.137,774.9,774.67,0.86527505]
[1754588749232,1.137,774.9,774.66,0.86527505]
[1754588752236,1.137,774.9,774.65,0.86527505]
[1754588752434,1.137,774.9,774.66,0.86527505]
[1754588752737,1.137,774.9,774.65,0.86527505]
[1754588752932,1.137,774.9,774.64,0.86527505]
[1754588753432,1.137,774.9,774.59,0.86527505]
[1754588753832,1.137,774.9,774.62,0.86527505]
[1754588754034,1.137,774.9,774.59,0.86527505]
[1754588754238,1.127,774.89,774.6,0.86527505]
[1754588754732,1.127,774.89,774.62,0.86527505]
[1754588754934,1.127,774.89,774.69,0.86527505]
[1754588755135,1.127,774.89,774.72,0.86527505]
[1754588755832,1.127,774.89,774.77,0.86527505]
[1754588756036,1.127,774.89,774.8,0.86527505]
[1754588756535,1.127,774.89,774.81,0.86527505]
[1754588756935,1.127,774.89,774.82,0.86527505]
[1754588757340,1.127,774.89,774.81,0.86527505]
[1754588758342,1.127,774.89,774.8,0.86527505]
[1754588759042,1.127,774.89,774.79,0.86527505]
[1754588762842,1.127,774.89,774.82,0.86527505]
[1754588764646,1.127,774.89,774.76,1.1444425]
[1754588765051,1.127,774.89,774.88,0.86375878]
[1754588767352,1.127,774.89,774.87,0.86375878]
[1754588767552,1.127,774.89,774.85,0.86375878]
[1754588768456,1.127,774.89,774.84,0.86375878]
[1754588768854,1.127,774.89,774.85,0.86375878]
[1754588769058,1.127,774.89,774.84,0.86375878]
[1754588774556,1.127,774.89,774.83,0.86375878]
[1754588774957,1.127,774.89,774.84,0.86375878]
[1754588775157,1.127,774.89,774.83,0.86375878]
[1754588775356,1.127,774.89,774.81,0.86375878]
[1754588777360,1.127,774.89,774.72,0.86375878]
[1754588777556,1.127,774.89,774.73,0.86375878]
[1754588777762,1.127,774.89,774.72,0.86375878]
[1754588778156,1.127,774.89,774.6,0.86375878]
[1754588778457,1.127,774.89,773.27,2.8786458]
[1754588778458,1.127,774.89,774.67,0.86375878]
[1754588779462,1.127,774.89,774.6,0.86375878]
[1754588780659,0.955,774.88,774.6,0.86375878]
[1754588782862,0.955,774.88,773.33,4.0301041]
[1754588782863,0.955,774.88,774.55,0.86375878]
[1754588783158,0.955,774.88,774.54,0.86375878]
[1754588784665,0.955,774.88,774.53,0.86375878]
[1754588785367,0.955,774.88,774.55,0.86375878]
[1754588788164,0.955,774.88,774.56,0.86375878]
[1754588788364,0.955,774.88,774.55,0.86375878]
[1754588789465,0.955,774.88,774.56,0.86375878]
[1754588790359,0.955,774.88,774.6,0.86375878]
[1754588791663,0.955,774.88,774.66,0.86375878]
[1754588794266,0.955,774.88,774.68,0.86375878]
[1754588795072,0.955,774.88,774.67,0.86375878]
[1754588795278,0.955,774.88,774.68,0.86375878]
[1754588796476,0.955,774.88,774.67,0.86375878]
[1754588796676,0.955,774.88,774.66,0.86375878]
[1754588797671,1.126,774.87,774.66,0.86375878]
[1754588798285,1.126,774.87,774.65,0.86375878]
[1754588799774,1.126,774.87,774.66,0.86375878]
[1754588799974,1.126,774.87,774.65,0.86375878]
[1754588800178,1.126,774.87,774.66,0.86375878]
[1754588800379,1.126,774.87,774.69,0.86375878]
[1754588800580,1.126,774.87,773.44,4.0301041]
[1754588800581,1.126,774.87,774.7,0.86375878]
[1754588802476,1.126,774.87,774.69,0.86375878]
[1754588803479,1.126,774.87,774.7,0.86375878]
[1754588803681,1.126,774.87,774.69,0.86375878]
[1754588804282,1.126,774.87,774.7,0.86375878]
[1754588805983,1.126,774.87,774.72,0.86375878]
[1754588806483,1.126,774.87,774.73,0.86375878]